fUSD/lending_fUSD_20240925
["ID","MTS","AMOUNT","RATE_DAILY","PERIOD"]
[339189404,1727281427351,500.0,0.00021999,120]
[339189405,1727281428000,500.0,0.00021999,120]
[339189406,1727281428364,500.0,0.00021999,120]
[339189407,1727281428738,500.0,0.00021999,120]
[339189408,1727281429039,500.0,0.00021999,120]
[339189409,1727281429080,500.0,0.00021999,120]
[339189410,1727281429383,500.0,0.00021999,120]
[339189411,1727281429458,500.0,0.00021999,120]
[339189412,1727281429722,500.0,0.00021999,120]
[339189413,1727281430208,259.97,0.00021999,120]
[339189414,1727281432037,500.0,0.00021999,120]
[339189415,1727281432373,159.81,0.00021999,120]
[339189416,1727281434098,500.0,0.00021999,120]
[339189417,1727281434577,500.0,0.00021999,120]
[339189418,1727281435632,315.99,0.00021999,120]
[339189419,1727281436617,500.0,0.00021999,120]
[339189420,1727281437720,500.0,0.00021999,120]
[339189421,1727281437800,500.0,0.00021999,120]
[339189422,1727281438131,500.0,0.00021999,120]
[339189423,1727281441454,500.0,0.00021999,120]
[339189424,1727281441810,352.74,0.00021999,120]
[339189425,1727281443870,500.0,0.00021999,120]
[339189426,1727281444612,500.0,0.00021999,120]
[339189427,1727281446259,500.0,0.00021999,120]
[339189428,1727281446418,632.6,0.00021999,120]
[339189429,1727281447442,500.0,0.00021999,120]
[339189430,1727281447845,500.0,0.00021999,120]
[339189431,1727281448047,500.0,0.00021999,120]
[339189432,1727281448388,500.0,0.00021999,120]
[339189433,1727281448490,500.0,0.00021999,120]
[339189434,1727281448731,500.0,0.00021999,120]
[339189435,1727281448825,419.77,0.00021999,120]
[339189436,1727281448855,250.0,0.00011085,2]
[339189437,1727281449123,500.0,0.00021999,120]
[339189438,1727281449362,500.0,0.00021999,120]
[339189439,1727281449432,500.0,0.00021999,120]
[339189440,1727281449782,391.98,0.00021999,120]
[339189441,1727281451733,362.87,0.00021999,120]
[339189442,1727281454274,156.28,0.00021999,120]
[339189443,1727281454684,500.0,0.00021999,120]
[339189444,1727281455024,384.06,0.00021999,120]
[339189445,1727281455546,539.98,0.00021999,120]
[339189446,1727281457217,197.54,0.00021999,120]
[339189447,1727281462200,500.0,0.00021999,120]
[339189448,1727281462534,500.0,0.00021999,120]
[339189449,1727281462846,500.0,0.00021999,120]
[339189450,1727281463189,500.0,0.00021999,120]
[339189451,1727281463511,500.0,0.00021999,120]
[339189452,1727281463885,455.87,0.00021999,120]
[339189453,1727281466552,500.0,0.00021999,120]
[339189454,1727281469325,500.0,0.00021999,120]
[339189455,1727281469650,500.0,0.00021999,120]
[339189456,1727281470316,500.0,0.00021999,120]
[339189457,1727281470773,500.0,0.00021999,120]
[339189458,1727281471082,500.0,0.00021999,120]
[339189459,1727281471133,500.0,0.00021999,120]
[339189460,1727281471460,500.0,0.00021999,120]
[339189461,1727281471623,500.0,0.00021999,120]
[339189462,1727281471778,223.47,0.00021999,120]
[339189463,1727281471951,500.0,0.00021999,120]
[339189464,1727281472282,502.85,0.00021999,120]
[339189465,1727281472900,500.0,0.00021999,120]
[339189466,1727281475144,500.0,0.00021999,120]
[339189467,1727281475887,500.0,0.00021999,120]
[339189468,1727281476900,500.0,0.00021999,120]
[339189469,1727281477200,500.0,0.00021999,120]
[339189470,1727281477538,500.0,0.00021999,120]
[339189471,1727281477918,500.0,0.00021999,120]
[339189472,1727281478183,500.0,0.00021999,120]
[339189473,1727281478224,603.25,0.00021999,120]
[339189474,1727281478509,500.0,0.00021999,120]
[339189475,1727281478549,500.0,0.00021999,120]
[339189476,1727281478812,500.0,0.00021999,120]
[339189477,1727281479130,500.0,0.00021999,120]
[339189478,1727281479288,500.0,0.00021999,120]
[339189479,1727281479500,500.0,0.00021999,120]
[339189480,1727281479695,396.62918613,0.00021999,120]
[339189481,1727281479910,500.0,0.00021999,120]
[339189482,1727281480282,500.0,0.00021999,120]
[339189483,1727281480651,500.0,0.00021999,120]
[339189484,1727281480989,500.0,0.00021999,120]
[339189485,1727281481460,500.0,0.00021999,120]
[339189486,1727281481874,472.93,0.00021999,120]
[339189487,1727281485032,500.0,0.00021999,120]
[339189488,1727281485089,500.0,0.00021999,120]
[339189489,1727281485416,500.0,0.00021999,120]
[339189490,1727281485488,310.46,0.00021999,120]
[339189491,1727281486087,500.0,0.00021999,120]
[339189492,1727281486428,500.0,0.00021999,120]
[339189493,1727281486756,500.0,0.00021999,120]
[339189494,1727281487086,500.0,0.00021999,120]
[339189495,1727281487403,500.0,0.00021999,120]
[339189496,1727281487732,500.0,0.00021999,120]
[339189497,1727281488148,500.0,0.00021999,120]
[339189498,1727281488432,500.0,0.00021999,120]
[339189499,1727281488726,500.0,0.00021999,120]
[339189500,1727281489061,219.86,0.00021999,120]
[339189501,1727281491194,334.08321684,0.00011034,2]
[339189502,1727281491775,1000.0,0.00022,120]
[339189503,1727281492196,500.0,0.00021999,120]
[339189504,1727281492510,500.0,0.00021999,120]
[339189505,1727281492836,500.0,0.00021999,120]
[339189506,1727281492983,500.0,0.00021999,120]
[339189507,1727281493233,500.0,0.00021999,120]
[339189508,1727281493293,300.3,0.00021999,120]
[339189509,1727281493576,529.67,0.00021999,120]
[339189510,1727281505350,500.0,0.00021999,120]
[339189511,1727281505678,390.96,0.00021999,120]
[339189512,1727281513023,500.0,0.00021999,120]
[339189513,1727281513504,500.0,0.00021999,120]
[339189514,1727281513895,500.0,0.00021999,120]
[339189515,1727281514228,500.0,0.00021999,120]
[339189516,1727281514567,521.55,0.00021999,120]
[339189517,1727281517263,500.0,0.00021999,120]
[339189518,1727281517628,500.0,0.00021999,120]
[339189519,1727281517953,500.0,0.00021999,120]
[339189520,1727281518413,500.0,0.00021999,120]
[339189521,1727281518757,458.52,0.00021999,120]
[339189522,1727281524907,500.0,0.00021999,120]
[339189523,1727281525240,500.0,0.00021999,120]
[339189524,1727281525705,500.0,0.00021999,120]
[339189525,1727281526038,500.0,0.00021999,120]
[339189526,1727281526354,500.0,0.00021999,120]
[339189527,1727281526668,500.0,0.00021999,120]
[339189528,1727281526776,499.81446916,0.00021999,120]
[339189529,1727281526989,500.0,0.00021999,120]
[339189530,1727281527309,500.0,0.00021999,120]
[339189531,1727281527639,500.0,0.00021999,120]
[339189532,1727281527972,500.0,0.00021999,120]
[339189533,1727281528140,347.32,9.237e-05,2]
[339189534,1727281528286,500.0,0.00021999,120]
[339189535,1727281528609,500.0,0.00021999,120]
[339189536,1727281528941,500.0,0.00021999,120]
[339189537,1727281529447,500.0,0.00021999,120]
[339189538,1727281529849,500.0,0.00021999,120]
[339189539,1727281529949,500.0,0.00021999,120]
[339189540,1727281530411,500.0,0.00021999,120]
[339189541,1727281530801,500.0,0.00021999,120]
[339189542,1727281531163,583.62718015,0.00021999,120]
[339189544,1727281542767,500.0,0.00021999,120]
[339189545,1727281543125,268.16,0.00021999,120]
[339189549,1727281569537,500.0,0.00021999,120]
[339189550,1727281584177,599.03,0.00021999,120]
[339189551,1727281589405,500.0,0.00021999,120]
[339189552,1727281599127,500.0,0.00021999,120]
[339189553,1727281609097,227.62,0.00021999,120]
[339189554,1727281622406,500.0,0.00021999,120]
[339189558,1727281653622,555.45,0.00021999,120]
[339189559,1727281653934,555.45,0.00021999,120]
[339189560,1727281654231,555.45,0.00021999,120]
[339189561,1727281654549,555.45,0.00021999,120]
[339189562,1727281655066,555.45,0.00021999,120]
[339189563,1727281655387,555.45,0.00021999,120]
[339189564,1727281655731,555.45,0.00021999,120]
[339189565,1727281656128,555.45,0.00021999,120]
[339189566,1727281656456,555.45,0.00021999,120]
[339189567,1727281656776,555.45,0.00021999,120]
[339189568,1727281657089,555.45,0.00021999,120]
[339189569,1727281657637,555.45,0.00021999,120]
[339189570,1727281657976,555.45,0.00021999,120]
[339189571,1727281658299,555.45,0.00021999,120]
[339189572,1727281658636,555.45,0.00021999,120]
[339189573,1727281658994,555.45,0.00021999,120]
[339189574,1727281659647,555.45,0.00021999,120]
[339189575,1727281659993,555.45,0.00021999,120]
[339189576,1727281660311,555.45,0.00021999,120]
[339189577,1727281660625,555.45,0.00021999,120]
[339189578,1727281660975,555.45,0.00021999,120]
[339189579,1727281661630,555.45,0.00021999,120]
[339189580,1727281661951,555.45,0.00021999,120]
[339189581,1727281662376,555.66563145,0.00021999,120]
[339189582,1727281680936,1235.262,0.00011013,2]
[339189583,1727281681157,501.55984767,0.00021999,120]
[339189585,1727281689843,1735.20999505,0.00011,5]
[339189586,1727281692188,351.50372389,0.00021999,120]
[339189587,1727281694520,501.5657508,0.00021999,120]
[339189588,1727281700794,500.0,0.00021999,120]
[339189589,1727281701545,500.0,0.00021999,120]
[339189590,1727281703285,524.42604105,0.00021999,120]
[339189591,1727281704274,388.04,0.00021999,120]
[339189592,1727281712317,514.7309435,0.00021999,120]
[339189593,1727281717520,320.89937684,0.00021999,120]
[339189594,1727281724635,500.0,0.00021999,120]
[339189595,1727281730828,527.53348243,0.00021999,120]
[339189596,1727281731101,500.35069982,0.00021999,120]
[339189597,1727281733476,500.0,0.00021999,120]
[339189598,1727281735902,500.0,0.00021999,120]
[339189599,1727281741645,500.0,0.00021999,120]
[339189600,1727281771272,532.22683045,0.00021999,120]
[339189601,1727281778207,500.0,0.00021999,120]
[339189602,1727281788468,500.0,0.00021999,120]
[339189603,1727281788850,202.15,0.00021999,120]
[339189615,1727281807296,295.2,0.00011103,2]
[339189616,1727281814022,500.0,0.00021999,120]
[339189617,1727281816967,500.0,0.00021999,120]
[339189618,1727281822700,500.0,0.00021999,120]
[339189619,1727281822822,265.68,0.00011103,2]
[339189623,1727281831883,-200.0,0.00011112,2]
[339189624,1727281831893,-265.68,0.00011123,2]
[339189625,1727281831904,-500.0,0.00011126,2]
[339189626,1727281831914,-903.32,0.00011131,2]
[339189627,1727281831924,-1902.52,0.00011133,2]
[339189628,1727281831934,-187.7597,0.00011134,2]
[339189629,1727281831944,-166.47,0.00011195,2]
[339189630,1727281831955,-124.75172563,0.000112,2]
[339189631,1727281831967,-1149.06827437,0.000112,2]
[339189632,1727281831977,-150.0,0.00011205,2]
[339189633,1727281831987,-265.68,0.00011224,2]
[339189634,1727281831997,-150.99,0.00011234,2]
[339189635,1727281832006,-1384.18048368,0.00011234,2]
[339189636,1727281832019,-368.7704374,0.00011234,2]
[339189637,1727281832030,-1129.82907892,0.00011234,2]
[339189638,1727281832040,-265.68,0.00011434,2]
[339189639,1727281832050,-745.44,0.00011444,2]
[339189640,1727281832060,-299.99,0.00011444,2]
[339189641,1727281832069,-150.99,0.00011444,2]
[339189642,1727281832079,-265.68,0.00011448,2]
[339189643,1727281832088,-265.68,0.00011448,2]
[339189644,1727281832097,-943.24647885,0.00011458,2]
[339189645,1727281832109,-450.037073,0.00011458,2]
[339189646,1727281832122,-1875.42835547,0.00011458,2]
[339189647,1727281832135,-2787.97809268,0.00011458,2]
[339189648,1727281832149,-347.32,0.00011501,2]
[339189649,1727281832160,-265.68,0.00011507,2]
[339189650,1727281832170,-1000.0,0.00011517,2]
[339189651,1727281832180,-500.0,0.00011534,2]
[339189652,1727281832190,-265.68,0.00011545,2]
[339189653,1727281832200,-2763.16599489,0.00011554,2]
[339189654,1727281832212,-735.44400511,0.00011554,2]
[339189655,1727281832222,-178.12,0.00011584,2]
[339189656,1727281832232,-499.99,0.00011602,2]
[339189657,1727281832242,-265.68,0.00011646,2]
[339189658,1727281832252,-212.57600351,0.00011646,2]
[339189659,1727281832264,-53.10399649,0.00011646,2]
[339189660,1727281832274,-150.0,0.00011655,2]
[339189661,1727281832285,-3155.01371944,0.00011656,2]
[339189662,1727281832297,-1074.32,0.00011656,2]
[339189663,1727281832310,-26243.58628056,0.00011656,2]
[339189664,1727281832320,-150.0,0.00011688,2]
[339189665,1727281832330,-150.0,0.00011688,2]
[339189666,1727281832340,-150.26667821,0.00011688,2]
[339189667,1727281832351,-150.00000001,0.00011688,2]
[339189668,1727281832361,-150.0,0.00011688,2]
[339189669,1727281832372,-150.0,0.00011688,2]
[339189670,1727281832383,-150.0,0.00011688,2]
[339189671,1727281832397,-221.91101493,0.00011688,2]
[339189672,1727281832407,-150.0,0.00011688,2]
[339189673,1727281832417,-150.0,0.00011688,2]
[339189674,1727281832427,-150.0,0.00011688,2]
[339189675,1727281832440,-150.26592262,0.00011688,2]
[339189676,1727281832450,-150.0,0.00011688,2]
[339189677,1727281832461,-150.0,0.00011873,2]
[339189678,1727281832471,-500.0,0.000119,4]
[339189679,1727281832482,-150.0,0.00011904,2]
[339189680,1727281832493,-169.034,0.00011947,2]
[339189681,1727281832503,-1000.0,0.00012,4]
[339189682,1727281832513,-169.034,0.00012001,2]
[339189683,1727281832523,-753.72,0.00012055,2]
[339189684,1727281832533,-753.72,0.00012055,2]
[339189685,1727281832543,-753.72,0.00012055,2]
[339189686,1727281832554,-753.72,0.00012055,2]
[339189687,1727281832564,-753.72,0.00012055,2]
[339189688,1727281832574,-753.72,0.00012055,2]
[339189689,1727281832585,-753.72,0.00012055,2]
[339189690,1727281832595,-244.83,0.00012055,2]
[339189691,1727281832606,-169.034,0.00012056,2]
[339189692,1727281832616,-150.0,0.00012059,2]
[339189693,1727281832626,-1600.0,0.000121,4]
[339189694,1727281832638,-169.034,0.00012111,2]
[339189695,1727281832649,-150.0,0.00012121,2]
[339189696,1727281832658,-150.0,0.00012121,2]
[339189697,1727281832668,-891.437117,0.00012122,2]
[339189698,1727281832677,-169.286687,0.00012122,2]
[339189699,1727281832687,-239.730328,0.00012122,2]
[339189700,1727281832698,-169.034,0.00012166,2]
[339189701,1727281832708,-166.95,0.00012192,2]
[339189702,1727281832718,-428.31,0.00012192,2]
[339189703,1727281832728,-150.0,0.00012192,2]
[339189704,1727281832737,-150.0,0.00012192,2]
[339189705,1727281832747,-428.36,0.00012192,2]
[339189706,1727281832756,-167.02,0.00012192,2]
[339189707,1727281832766,-151.05,0.00012192,2]
[339189708,1727281832776,-152.43,0.00012192,2]
[339189709,1727281832786,-150.0,0.00012192,2]
[339189710,1727281832795,-150.0,0.00012192,2]
[339189711,1727281832805,-150.0,0.00012192,2]
[339189712,1727281832815,-150.0,0.00012192,2]
[339189713,1727281832825,-150.0,0.00012192,2]
[339189714,1727281832835,-428.36,0.00012192,2]
[339189715,1727281832844,-150.0,0.00012192,2]
[339189716,1727281832854,-150.0,0.00012192,2]
[339189717,1727281832864,-150.0,0.00012192,2]
[339189718,1727281832874,-150.0,0.00012192,2]
[339189719,1727281832884,-150.0,0.00012192,2]
[339189720,1727281832893,-150.0,0.00012192,2]
[339189721,1727281832903,-150.0,0.00012192,2]
[339189722,1727281832913,-428.09,0.00012192,2]
[339189723,1727281832922,-150.0,0.00012192,2]
[339189724,1727281832932,-150.0,0.00012192,2]
[339189725,1727281832942,-150.0,0.00012192,2]
[339189726,1727281832951,-150.0,0.00012192,2]
[339189727,1727281832971,-150.0,0.00012192,2]
[339189728,1727281832985,-150.0,0.00012192,2]
[339189729,1727281832995,-150.0,0.00012192,2]
[339189730,1727281833006,-150.0,0.00012192,2]
[339189731,1727281833016,-150.0,0.00012192,2]
[339189732,1727281833027,-150.0,0.00012192,2]
[339189733,1727281833037,-150.0,0.00012192,2]
[339189734,1727281833047,-150.0,0.00012192,2]
[339189735,1727281833058,-150.0,0.00012192,2]
[339189736,1727281833068,-150.0,0.00012192,2]
[339189737,1727281833079,-150.0,0.00012192,2]
[339189738,1727281833089,-150.0,0.00012192,2]
[339189739,1727281833100,-150.0,0.00012192,2]
[339189740,1727281833114,-150.0,0.00012192,2]
[339189741,1727281833124,-150.0,0.00012192,2]
[339189742,1727281833136,-150.0,0.00012192,2]
[339189743,1727281833146,-150.0,0.00012192,2]
[339189744,1727281833447,-150.0,0.00012192,2]
[339189745,1727281833473,-150.0,0.00012192,2]
[339189746,1727281833483,-150.0,0.00012192,2]
[339189747,1727281833494,-150.0,0.00012192,2]
[339189748,1727281833504,-2100.0,0.000122,4]
[339189749,1727281833514,-169.034,0.00012222,2]
[339189750,1727281833525,-150.0,0.00012244,2]
[339189751,1727281833535,-891.437117,0.00012274,2]
[339189752,1727281833548,-169.034,0.00012279,2]
[339189753,1727281833558,-2600.0,0.000123,4]
[339189754,1727281833569,-1380.55500402,0.00012303,2]
[339189755,1727281833580,-150.0,0.00012337,2]
[339189756,1727281833590,-150.0,0.00012337,2]
[339189757,1727281833600,-220.22,0.00012374,2]
[339189758,1727281833610,-500.0,0.000124,4]
[339189759,1727281833620,-891.437117,0.00012425,2]
[339189760,1727281833631,-150.0,0.0001243,2]
[339189761,1727281833645,-167.09,0.00012445,2]
[339189762,1727281833664,-500.0,0.000125,4]
[339189763,1727281833675,-824.21686752,0.00012512,2]
[339189764,1727281833686,-150.0,0.00012553,2]
[339189765,1727281833697,-150.0,0.00012553,2]
[339189766,1727281833707,-891.437117,0.00012577,2]
[339189767,1727281833717,-166.47,0.00012594,2]
[339189768,1727281833728,-500.0,0.000126,4]
[339189769,1727281833739,-150.0,0.00012615,2]
[339189770,1727281833748,-2001.6043,0.00012628,2]
[339189771,1727281833759,-7135.2494,0.00012643,2]
[339189772,1727281833774,-8623.23382949,0.00012655,2]
[339189773,1727281833785,-368.79400664,0.00012663,2]
[339189774,1727281833796,-8623.23382941,0.00012682,2]
[339189775,1727281833806,-500.0,0.000127,4]
[339189776,1727281833816,-8623.23382941,0.00012709,2]
[339189777,1727281833827,-255.0,0.00012727,2]
[339189778,1727281833837,-891.437117,0.00012728,2]
[339189779,1727281833848,-8623.23382941,0.00012737,2]
[339189780,1727281833859,-129960.6201,0.00012743,2]
[339189781,1727281833870,-1636.9819,0.00012755,2]
[339189782,1727281833880,-8623.23382941,0.00012764,2]
[339189783,1727281833890,-27.92085238,0.0001277,2]
[339189784,1727281833906,-122.07914762,0.0001277,2]
[339189785,1727281833916,-13486.39890466,0.0001278,2]
[339189786,1727281833928,-3078.55932045,0.0001278,2]
[339189787,1727281833940,-388.88750137,0.0001278,2]
[339189788,1727281833959,-39193.38028386,0.0001278,2]
[339189789,1727281833971,-261.15578167,0.0001278,2]
[339189790,1727281833983,-517.85068696,0.0001278,2]
[339189791,1727281833995,-5003.70250805,0.0001278,2]
[339189792,1727281834008,-297.99594133,0.0001278,2]
[339189793,1727281834021,-1117.22136038,0.0001278,2]
[339189794,1727281834033,-2375.16069498,0.0001278,2]
[339189795,1727281834049,-3244.15518752,0.0001278,2]
[339189796,1727281834061,-4318.1251668,0.0001278,2]
[339189797,1727281834075,-4796.58478385,0.0001278,2]
[339189798,1727281834086,-2392.3966544,0.0001278,2]
[339189799,1727281834099,-14144.08786022,0.0001278,2]
[339189800,1727281834109,-269.00014947,0.00012781,2]
[339189801,1727281834119,-3108.9963195,0.00012791,2]
[339189802,1727281834132,-3185.02759438,0.00012791,2]
[339189803,1727281834154,-2329.20991553,0.00012791,2]
[339189804,1727281834165,-321.60322025,0.00012797,2]
[339189805,1727281834175,-658.0173,0.00012798,2]
[339189806,1727281834184,-310.439582,0.000128,2]
[339189807,1727281834194,-997.52,0.000128,2]
[339189808,1727281834205,-900.0,0.000128,4]
[339189809,1727281834216,-150.0,0.00012801,2]
[339189810,1727281834226,-269.00014947,0.0001281,2]
[339189811,1727281834236,-150.0,0.00012816,2]
[339189812,1727281834246,-5614.0589106,0.00012818,2]
[339189813,1727281837446,500.0,0.00021999,120]
[339189827,1727281838091,-301.11415239,0.00012643,2]
[339189828,1727281838104,-566.25282271,0.00012643,2]
[339189829,1727281838116,-132.6330249,0.00012643,2]
[339189830,1727281838127,-3009.17491881,0.00012818,2]
[339189831,1727281838139,-269.00014947,0.0001284,2]
[339189832,1727281838150,-8623.23382941,0.00012846,2]
[339189833,1727281838160,-150.0,0.00012855,2]
[339189834,1727281838170,-150.0,0.00012868,2]
[339189835,1727281838180,-1134.25678011,0.0001287,2]
[339189836,1727281838192,-486.81726003,0.0001287,2]
[339189837,1727281838204,-333.80098621,0.0001287,2]
[339189838,1727281838214,-199.57338923,0.0001287,2]
[339189839,1727281838227,-69.42676024,0.0001287,2]
[339189840,1727281838237,-188.3956166,0.00012873,2]
[339189841,1727281838249,-8434.83821281,0.00012873,2]
[339189842,1727281838259,-745.44,0.00012874,2]
[339189843,1727281838269,-164.09,0.00012888,2]
[339189844,1727281838279,-500.0,0.00012896,2]
[339189845,1727281838289,-16051.44301534,0.00012897,2]
[339189846,1727281838298,-2223.30292495,0.00012898,2]
[339189847,1727281838310,-61483.26027505,0.00012898,2]
[339189848,1727281838320,-12248.9453,0.00012898,2]
[339189849,1727281838330,-1000.0,0.00012898,2]
[339189850,1727281838339,-33188.8299,0.00012898,2]
[339189851,1727281838350,-100000.0,0.00012898,2]
[339189852,1727281838359,-28333.656,0.00012898,2]
[339189853,1727281838370,-151.0,0.00012898,2]
[339189854,1727281838380,-512.249707,0.00012898,2]
[339189855,1727281838394,-512.249707,0.00012898,2]
[339189856,1727281838403,-340.454018,0.00012898,2]
[339189857,1727281838413,-340.454018,0.00012898,2]
[339189858,1727281838423,-151.0,0.00012898,2]
[339189859,1727281838432,-168.64780149,0.00012898,2]
[339189860,1727281838442,-1073.02265,0.00012898,2]
[339189861,1727281838452,-1073.02265,0.00012898,2]
[339189862,1727281838462,-242.163319,0.00012898,2]
[339189863,1727281838472,-151.0,0.00012898,2]
[339189865,1727281838482,-242.163319,0.00012898,2]
[339189867,1727281838492,-151.0,0.00012898,2]
[339189869,1727281838501,-193.056161,0.00012898,2]
[339189870,1727281838510,-151.0,0.00012898,2]
[339189871,1727281838520,-193.056161,0.00012898,2]
[339189872,1727281838530,-164.349371,0.00012898,2]
[339189874,1727281838540,-151.0,0.00012898,2]
[339189876,1727281838550,-164.349371,0.00012898,2]
[339189878,1727281838560,-151.0,0.00012898,2]
[339189880,1727281838569,-151.0,0.00012898,2]
[339189882,1727281838579,-227.099334,0.00012898,2]
[339189884,1727281838588,-151.0,0.00012898,2]
[339189886,1727281838598,-159.888645,0.00012898,2]
[339189889,1727281838610,-309.355169,0.00012898,2]
[339189891,1727281838620,-309.355169,0.00012898,2]
[339189892,1727281838630,-185.368224,0.00012898,2]
[339189894,1727281838640,-178.307664,0.00012898,2]
[339189896,1727281838649,-151.0,0.00012898,2]
[339189898,1727281838658,-178.307664,0.00012898,2]
[339189900,1727281838668,-525.939348,0.00012898,2]
[339189902,1727281838677,-525.939348,0.00012898,2]
[339189904,1727281838687,-543.856922,0.00012898,2]
[339189906,1727281838696,-543.856922,0.00012898,2]
[339189908,1727281838706,-290.689108,0.00012898,2]
[339189910,1727281838715,-290.689108,0.00012898,2]
[339189913,1727281838725,-151.0,0.00012898,2]
[339189915,1727281838735,-151.0,0.00012898,2]
[339189917,1727281838744,-151.0,0.00012898,2]
[339189919,1727281838753,-1435.940699,0.00012898,2]
[339189921,1727281838762,-1435.940699,0.00012898,2]
[339189923,1727281838772,-1435.940699,0.00012898,2]
[339189925,1727281838781,-1435.940699,0.00012898,2]
[339189927,1727281838791,-151.0,0.00012898,2]
[339189929,1727281838800,-151.0,0.00012898,2]
[339189931,1727281838809,-151.0,0.00012898,2]
[339189933,1727281838819,-151.0,0.00012898,2]
[339189935,1727281838828,-210.26844,0.00012898,2]
[339189937,1727281838838,-210.26844,0.00012898,2]
[339189939,1727281838847,-151.0,0.00012898,2]
[339189941,1727281838858,-430.613355,0.00012898,2]
[339189943,1727281838869,-430.613355,0.00012898,2]
[339189945,1727281838878,-151.0,0.00012898,2]
[339189947,1727281838887,-151.0,0.00012898,2]
[339189949,1727281838896,-430.613355,0.00012898,2]
[339189951,1727281838905,-430.613355,0.00012898,2]
[339189953,1727281838915,-151.0,0.00012898,2]
[339189955,1727281838924,-1067.41461677,0.00012898,2]
[339189957,1727281838935,-196.531484,0.00012898,2]
[339189958,1727281838945,-196.531484,0.00012898,2]
[339189959,1727281838954,-196.531484,0.00012898,2]
[339189960,1727281838964,-196.531484,0.00012898,2]
[339189961,1727281838973,-268.143828,0.00012898,2]
[339189962,1727281838983,-268.143828,0.00012898,2]
[339189963,1727281838992,-268.143828,0.00012898,2]
[339189964,1727281839002,-268.143828,0.00012898,2]
[339189965,1727281839012,-151.0,0.00012898,2]
[339189966,1727281839023,-151.0,0.00012898,2]
[339189967,1727281839033,-151.0,0.00012898,2]
[339189968,1727281839044,-151.0,0.00012898,2]
[339189969,1727281839054,-6185.481627,0.00012898,2]
[339189970,1727281839063,-6185.481627,0.00012898,2]
[339189971,1727281839073,-6185.481627,0.00012898,2]
[339189972,1727281839083,-6185.481627,0.00012898,2]
[339189973,1727281839092,-151.0,0.00012898,2]
[339189974,1727281839102,-151.0,0.00012898,2]
[339189975,1727281839112,-151.0,0.00012898,2]
[339189976,1727281839122,-151.0,0.00012898,2]
[339189977,1727281839132,-226.0818,0.00012898,2]
[339189978,1727281839142,-1067.41461677,0.00012899,2]
[339189979,1727281839152,-500.0,0.00012899,2]
[339189980,1727281839161,-500.0,0.00012899,2]
[339189981,1727281839172,-500.0,0.00012899,2]
[339189982,1727281839182,-500.0,0.00012899,2]
[339189983,1727281839192,-337.415803,0.00012899,2]
[339189984,1727281839203,-500.0,0.00012899,2]